fUSD/lending_fUSD_20260606
["ID","MTS","AMOUNT","RATE_DAILY","PERIOD"]
[424294175,1780755044000,-1092.0,0.00024,2]
[424294186,1780755044000,-150.0,0.00024162,2]
[424294188,1780755044000,-150.0,0.00024162,2]
[424294183,1780755044000,-1178.31,0.00024158,7]
[424294187,1780755044000,-150.0,0.00024162,2]
[424294178,1780755044000,-4110.0,0.00024,2]
[424294181,1780755044000,-254.21,0.0002411,2]
[424294184,1780755044000,-150.0,0.00024162,2]
[424294182,1780755044000,-632.78,0.00024158,7]
[424294179,1780755044000,-500.0,0.00024082,2]
[424294180,1780755044000,-381.02,0.0002411,2]
[424294177,1780755044000,-2972.0,0.00024,2]
[424294189,1780755044000,-183.0,0.00024162,2]
[424294246,1780755045000,-439.12,0.00025,2]
[424294247,1780755045000,-14184.8,0.00025096,7]
[424294250,1780755045000,-150.0,0.00025597,2]
[424294249,1780755045000,-500.0,0.00025193,2]
[424294251,1780755045000,-3642.0,0.00025776,2]
[424294259,1780755045000,-150.0,0.00025947,2]
[424294258,1780755045000,-150.0,0.00025947,2]
[424294257,1780755045000,-150.0,0.00025947,2]
[424294254,1780755045000,-1227.0,0.00025866,2]
[424294260,1780755045000,-150.0,0.00025947,2]
[424294261,1780755045000,-150.0,0.00025947,2]
[424294255,1780755045000,-150.0,0.00025947,2]
[424294256,1780755045000,-150.0,0.00025947,2]
[424294252,1780755045000,-419.0,0.00025776,2]
[424294265,1780755045000,-215.80795776,0.00026,3]
[424294263,1780755045000,-151.0,0.00025962,4]
[424294269,1780755045000,-4204.8,0.00026296,2]
[424294268,1780755045000,-2000.0,0.00026257,7]
[424294270,1780755045000,-1933.13854938,0.00026312,5]
[424294266,1780755045000,-272.16,0.00026027,7]
[424294244,1780755045000,-439.12,0.00025,2]
[424294253,1780755045000,-1105.42,0.000258,7]
[424294245,1780755045000,-439.12,0.00025,2]
[424294227,1780755045000,-358.0,0.00025,2]
[424294243,1780755045000,-439.12,0.00025,2]
[424294221,1780755045000,-151.0,0.00024962,4]
[424294224,1780755045000,-401.20650266,0.00025,2]
[424294222,1780755045000,-400.0,0.0002497,2]
[424294226,1780755045000,-338.0,0.00025,2]
[424294225,1780755045000,-2517.69734692,0.00025,2]
[424294223,1780755045000,-352.93211922,0.0002497,2]
[424294238,1780755045000,-439.12,0.00025,2]
[424294228,1780755045000,-1925.0,0.00025,2]
[424294239,1780755045000,-439.12,0.00025,2]
[424294233,1780755045000,-1109.47162442,0.00025,2]
[424294235,1780755045000,-2980.79991138,0.00025,2]
[424294236,1780755045000,-4129.869333,0.00025,2]
[424294229,1780755045000,-369.0,0.00025,2]
[424294230,1780755045000,-789.0,0.00025,2]
[424294232,1780755045000,-942.8986884,0.00025,2]
[424294231,1780755045000,-204.0,0.00025,2]
[424294234,1780755045000,-692.50525579,0.00025,2]
[424294237,1780755045000,-439.12,0.00025,2]
[424294241,1780755045000,-439.12,0.00025,2]
[424294242,1780755045000,-439.12,0.00025,2]
[424294240,1780755045000,-439.12,0.00025,2]
[424294248,1780755045000,-500.0,0.00025193,2]
[424294267,1780755045000,-454.0,0.00026107,2]
[424294272,1780755045000,-200.0,0.00026534,2]
[424294271,1780755045000,-993.9,0.000264,7]
[424294303,1780755045000,-500.0,0.00027123,2]
[424294300,1780755045000,-278.44102927,0.00027123,2]
[424294304,1780755045000,-500.0,0.00027123,2]
[424294296,1780755045000,-500.0,0.00027123,2]
[424294305,1780755045000,-278.23959598,0.00027123,2]
[424294298,1780755045000,-166.00519298,0.00027123,2]
[424294297,1780755045000,-500.0,0.00027123,2]
[424294306,1780755045000,-1098.0,0.00027123,2]
[424294310,1780755045000,-500.0,0.00027123,2]
[424294309,1780755045000,-500.0,0.00027123,2]
[424294312,1780755045000,-500.0,0.00027123,2]
[424294311,1780755045000,-500.0,0.00027123,2]
[424294313,1780755045000,-500.0,0.00027123,2]
[424294307,1780755045000,-1098.0,0.00027123,2]
[424294314,1780755045000,-1166.0,0.00027123,2]
[424294315,1780755045000,-500.0,0.00027123,2]
[424294316,1780755045000,-500.0,0.00027123,2]
[424294318,1780755045000,-500.0,0.00027123,2]
[424294317,1780755045000,-1166.0,0.00027123,2]
[424294319,1780755045000,-1166.0,0.00027123,2]
[424294262,1780755045000,-213.0,0.00025947,2]
[424294301,1780755045000,-500.0,0.00027123,2]
[424294295,1780755045000,-500.0,0.00027123,2]
[424294308,1780755045000,-500.0,0.00027123,2]
[424294302,1780755045000,-500.0,0.00027123,2]
[424294299,1780755045000,-183.93938706,0.00027123,2]
[424294264,1780755045000,-550.0,0.00026,2]
[424294275,1780755045000,-209.6698924,0.00026621,3]
[424294276,1780755045000,-350.0,0.00026771,8]
[424294279,1780755045000,-1068.98,0.00026973,7]
[424294277,1780755045000,-14184.8,0.00026795,7]
[424294278,1780755045000,-151.0,0.00026962,4]
[424294280,1780755045000,-188.853139,0.00027,2]
[424294273,1780755045000,-200.0,0.00026537,2]
[424294282,1780755045000,-348.0,0.00027037,2]
[424294281,1780755045000,-215.80795776,0.00027,7]
[424294274,1780755045000,-200.0,0.00026539,2]
[424294284,1780755045000,-150.0,0.00027123,2]
[424294286,1780755045000,-500.0,0.00027123,2]
[424294287,1780755045000,-218.73222612,0.00027123,2]
[424294291,1780755045000,-500.0,0.00027123,2]
[424294285,1780755045000,-287.44605956,0.00027123,2]
[424294283,1780755045000,-158.06927802,0.00027123,2]
[424294290,1780755045000,-500.0,0.00027123,2]
[424294289,1780755045000,-500.0,0.00027123,2]
[424294288,1780755045000,-500.0,0.00027123,2]
[424294292,1780755045000,-150.0,0.00027123,2]
[424294294,1780755045000,-500.0,0.00027123,2]
[424294358,1780755046000,-1098.0,0.00027123,2]
[424294359,1780755046000,-1828.0,0.00027123,2]
[424294357,1780755046000,-206.7425237,0.00027123,2]
[424294354,1780755046000,-150.0,0.00027123,2]
[424294356,1780755046000,-1828.0,0.00027123,2]
[424294351,1780755046000,-1098.0,0.00027123,2]
[424294353,1780755046000,-1828.0,0.00027123,2]
[424294352,1780755046000,-1166.0,0.00027123,2]
[424294347,1780755046000,-1098.0,0.00027123,2]
[424294360,1780755046000,-1098.0,0.00027123,2]
[424294355,1780755046000,-1098.0,0.00027123,2]
[424294361,1780755046000,-1828.0,0.00027123,2]
[424294374,1780755046000,-1828.0,0.00027123,2]
[424294366,1780755046000,-1166.0,0.00027123,2]
[424294368,1780755046000,-1828.0,0.00027123,2]
[424294367,1780755046000,-1098.0,0.00027123,2]
[424294364,1780755046000,-1098.0,0.00027123,2]
[424294363,1780755046000,-1828.0,0.00027123,2]
[424294365,1780755046000,-1828.0,0.00027123,2]
[424294371,1780755046000,-1828.0,0.00027123,2]
[424294369,1780755046000,-500.0,0.00027123,2]
[424294370,1780755046000,-1098.0,0.00027123,2]
[424294372,1780755046000,-500.0,0.00027123,2]
[424294385,1780755046000,-1828.0,0.00027123,2]
[424294348,1780755046000,-1166.0,0.00027123,2]
[424294362,1780755046000,-1098.0,0.00027123,2]
[424294350,1780755046000,-150.0,0.00027123,2]
[424294322,1780755046000,-500.0,0.00027123,2]
[424294346,1780755046000,-1166.0,0.00027123,2]
[424294324,1780755046000,-1166.0,0.00027123,2]
[424294327,1780755046000,-500.0,0.00027123,2]
[424294320,1780755046000,-500.0,0.00027123,2]
[424294384,1780755046000,-500.0,0.00027123,2]
[424294326,1780755046000,-500.0,0.00027123,2]
[424294321,1780755046000,-1166.0,0.00027123,2]
[424294323,1780755046000,-500.0,0.00027123,2]
[424294325,1780755046000,-500.0,0.00027123,2]
[424294329,1780755046000,-449.71848685,0.00027123,2]
[424294338,1780755046000,-1166.0,0.00027123,2]
[424294337,1780755046000,-500.0,0.00027123,2]
[424294339,1780755046000,-515.0,0.00027123,2]
[424294349,1780755046000,-1828.0,0.00027123,2]
[424294331,1780755046000,-500.0,0.00027123,2]
[424294328,1780755046000,-1166.0,0.00027123,2]
[424294336,1780755046000,-515.0,0.00027123,2]
[424294335,1780755046000,-1166.0,0.00027123,2]
[424294330,1780755046000,-1098.0,0.00027123,2]
[424294333,1780755046000,-515.0,0.00027123,2]
[424294334,1780755046000,-500.0,0.00027123,2]
[424294340,1780755046000,-359.92465112,0.00027123,2]
[424294345,1780755046000,-515.0,0.00027123,2]
[424294343,1780755046000,-1166.0,0.00027123,2]
[424294344,1780755046000,-1098.0,0.00027123,2]
[424294341,1780755046000,-1166.0,0.00027123,2]
[424294342,1780755046000,-515.0,0.00027123,2]
[424294332,1780755046000,-1166.0,0.00027123,2]
[424294381,1780755046000,-1828.0,0.00027123,2]
[424294373,1780755046000,-1166.0,0.00027123,2]
[424294377,1780755046000,-500.0,0.00027123,2]
[424294417,1780755046000,-515.0,0.00027123,2]
[424294418,1780755046000,-515.0,0.00027123,2]
[424294419,1780755046000,-1828.0,0.00027123,2]
[424294421,1780755046000,-500.0,0.00027123,2]
[424294420,1780755046000,-515.0,0.00027123,2]
[424294413,1780755046000,-150.0,0.00027123,2]
[424294410,1780755046000,-1166.0,0.00027123,2]
[424294415,1780755046000,-197.22054503,0.00027123,2]
[424294416,1780755046000,-1098.0,0.00027123,2]
[424294414,1780755046000,-515.0,0.00027123,2]
[424294412,1780755046000,-515.0,0.00027123,2]
[424294422,1780755046000,-500.0,0.00027123,2]
[424294411,1780755046000,-515.0,0.00027123,2]
[424294426,1780755046000,-500.0,0.00027123,2]
[424294427,1780755046000,-515.0,0.00027123,2]
[424294424,1780755046000,-1166.0,0.00027123,2]
[424294423,1780755046000,-1098.0,0.00027123,2]
[424294429,1780755046000,-500.0,0.00027123,2]
[424294430,1780755046000,-500.0,0.00027123,2]
[424294433,1780755046000,-396.32957951,0.00027123,2]
[424294434,1780755046000,-1098.0,0.00027123,2]
[424294428,1780755046000,-500.0,0.00027123,2]
[424294431,1780755046000,-500.0,0.00027123,2]
[424294432,1780755046000,-1828.0,0.00027123,2]
[424294436,1780755046000,-500.0,0.00027123,2]
[424294380,1780755046000,-500.0,0.00027123,2]
[424294425,1780755046000,-500.0,0.00027123,2]
[424294408,1780755046000,-515.0,0.00027123,2]
[424294435,1780755046000,-515.0,0.00027123,2]
[424294404,1780755046000,-515.0,0.00027123,2]
[424294409,1780755046000,-515.0,0.00027123,2]
[424294383,1780755046000,-1828.0,0.00027123,2]
[424294378,1780755046000,-1828.0,0.00027123,2]
[424294375,1780755046000,-500.0,0.00027123,2]
[424294376,1780755046000,-1828.0,0.00027123,2]
[424294379,1780755046000,-1166.0,0.00027123,2]
[424294387,1780755046000,-1828.0,0.00027123,2]
[424294397,1780755046000,-1098.0,0.00027123,2]
[424294398,1780755046000,-515.0,0.00027123,2]
[424294395,1780755046000,-1166.0,0.00027123,2]
[424294390,1780755046000,-1166.0,0.00027123,2]
[424294388,1780755046000,-500.0,0.00027123,2]
[424294386,1780755046000,-500.0,0.00027123,2]
[424294382,1780755046000,-500.0,0.00027123,2]
[424294389,1780755046000,-1828.0,0.00027123,2]
[424294392,1780755046000,-1828.0,0.00027123,2]
[424294407,1780755046000,-1098.0,0.00027123,2]
[424294401,1780755046000,-1098.0,0.00027123,2]
[424294402,1780755046000,-515.0,0.00027123,2]
[424294405,1780755046000,-1828.0,0.00027123,2]
[424294403,1780755046000,-1098.0,0.00027123,2]
[424294400,1780755046000,-515.0,0.00027123,2]
[424294399,1780755046000,-1098.0,0.00027123,2]
[424294391,1780755046000,-224.92811501,0.00027123,2]
[424294394,1780755046000,-1828.0,0.00027123,2]
[424294393,1780755046000,-150.0,0.00027123,2]
[424294406,1780755046000,-515.0,0.00027123,2]
[424294474,1780755047000,-587.36410633,0.00027123,2]
[424294480,1780755047000,-481.11085494,0.00027123,2]
[424294476,1780755047000,-500.0,0.00027123,2]
[424294472,1780755047000,-565.0,0.00027123,2]
[424294465,1780755047000,-565.0,0.00027123,2]
[424294471,1780755047000,-565.0,0.00027123,2]
[424294470,1780755047000,-565.0,0.00027123,2]
[424294469,1780755047000,-565.0,0.00027123,2]
[424294479,1780755047000,-500.0,0.00027123,2]
[424294467,1780755047000,-565.0,0.00027123,2]
[424294473,1780755047000,-565.0,0.00027123,2]
[424294478,1780755047000,-500.0,0.00027123,2]
[424294481,1780755047000,-150.0,0.00027123,2]
[424294477,1780755047000,-500.0,0.00027123,2]
[424294482,1780755047000,-150.0,0.00027123,2]
[424294483,1780755047000,-216.30324944,0.00027123,2]
[424294484,1780755047000,-210.61267653,0.00027123,2]
[424294486,1780755047000,-500.0,0.00027123,2]
[424294491,1780755047000,-500.0,0.00027123,2]
[424294485,1780755047000,-500.0,0.00027123,2]
[424294490,1780755047000,-500.0,0.00027123,2]
[424294487,1780755047000,-500.0,0.00027123,2]
[424294488,1780755047000,-500.0,0.00027123,2]
[424294461,1780755047000,-565.0,0.00027123,2]
[424294489,1780755047000,-500.0,0.00027123,2]
[424294475,1780755047000,-500.0,0.00027123,2]
[424294466,1780755047000,-565.0,0.00027123,2]
[424294449,1780755047000,-536.50885793,0.00027123,2]
[424294468,1780755047000,-565.0,0.00027123,2]
[424294492,1780755047000,-500.0,0.00027123,2]
[424294446,1780755047000,-515.0,0.00027123,2]
[424294438,1780755047000,-1166.0,0.00027123,2]
[424294439,1780755047000,-515.0,0.00027123,2]
[424294440,1780755047000,-1828.0,0.00027123,2]
[424294442,1780755047000,-1166.0,0.00027123,2]
[424294441,1780755047000,-1098.0,0.00027123,2]
[424294443,1780755047000,-515.0,0.00027123,2]
[424294437,1780755047000,-510.57684065,0.00027123,2]
[424294444,1780755047000,-1098.0,0.00027123,2]
[424294445,1780755047000,-1835.71235742,0.00027123,2]
[424294448,1780755047000,-1104.0953843,0.00027123,2]
[424294464,1780755047000,-565.0,0.00027123,2]
[424294457,1780755047000,-300.0,0.00027123,14]
[424294456,1780755047000,-565.0,0.00027123,2]
[424294451,1780755047000,-565.0,0.00027123,2]
[424294450,1780755047000,-565.0,0.00027123,2]
[424294455,1780755047000,-565.0,0.00027123,2]
[424294458,1780755047000,-565.0,0.00027123,2]
[424294452,1780755047000,-565.0,0.00027123,2]
[424294453,1780755047000,-565.0,0.00027123,2]
[424294454,1780755047000,-565.0,0.00027123,2]
[424294460,1780755047000,-565.0,0.00027123,2]
[424294459,1780755047000,-565.0,0.00027123,2]
[424294463,1780755047000,-565.0,0.00027123,2]
[424294462,1780755047000,-565.0,0.00027123,2]
[424294447,1780755047000,-1185.11670942,0.00027123,2]
[424294495,1780755047000,-500.0,0.00027123,2]
[424294546,1780755047000,-500.0,0.00027397,2]
[424294497,1780755047000,-500.0,0.00027123,2]
[424294525,1780755047000,-1351.0,0.00027397,2]
[424294527,1780755047000,-1351.0,0.00027397,2]
[424294528,1780755047000,-500.0,0.00027397,2]
[424294532,1780755047000,-1351.0,0.00027397,2]
[424294530,1780755047000,-1351.0,0.00027397,2]
[424294534,1780755047000,-1351.0,0.00027397,2]
[424294533,1780755047000,-500.0,0.00027397,2]
[424294529,1780755047000,-500.0,0.00027397,2]
[424294531,1780755047000,-500.0,0.00027397,2]
[424294537,1780755047000,-500.0,0.00027397,2]
[424294535,1780755047000,-500.0,0.00027397,2]
[424294536,1780755047000,-1351.0,0.00027397,2]
[424294538,1780755047000,-1351.0,0.00027397,2]
[424294540,1780755047000,-1351.0,0.00027397,2]
[424294545,1780755047000,-1351.0,0.00027397,2]
[424294544,1780755047000,-500.0,0.00027397,2]
[424294548,1780755047000,-500.0,0.00027397,2]
[424294550,1780755047000,-500.0,0.00027397,2]
[424294543,1780755047000,-1351.0,0.00027397,2]
[424294542,1780755047000,-1351.0,0.00027397,2]
[424294551,1780755047000,-500.0,0.00027397,2]
[424294541,1780755047000,-1351.0,0.00027397,2]
[424294547,1780755047000,-1351.0,0.00027397,2]
[424294539,1780755047000,-1351.0,0.00027397,2]
[424294494,1780755047000,-500.0,0.00027123,2]
[424294526,1780755047000,-1351.0,0.00027397,2]
[424294520,1780755047000,-699.0,0.00027137,2]
[424294549,1780755047000,-1351.0,0.00027397,2]
[424294519,1780755047000,-503.41003638,0.00027123,2]
[424294524,1780755047000,-279.65988658,0.00027397,2]
[424294502,1780755047000,-500.0,0.00027123,2]
[424294496,1780755047000,-636.18712205,0.00027123,2]
[424294493,1780755047000,-500.0,0.00027123,2]
[424294501,1780755047000,-500.0,0.00027123,2]
[424294499,1780755047000,-500.0,0.00027123,2]
[424294498,1780755047000,-500.0,0.00027123,2]
[424294511,1780755047000,-500.0,0.00027123,2]
[424294514,1780755047000,-500.0,0.00027123,2]
[424294503,1780755047000,-500.0,0.00027123,2]
[424294504,1780755047000,-500.0,0.00027123,2]
[424294505,1780755047000,-500.0,0.00027123,2]
[424294513,1780755047000,-500.0,0.00027123,2]
[424294500,1780755047000,-500.0,0.00027123,2]
[424294506,1780755047000,-500.0,0.00027123,2]
[424294523,1780755047000,-275.41505732,0.000273,30]
[424294517,1780755047000,-500.0,0.00027123,2]
[424294521,1780755047000,-2000.0,0.00027148,7]
[424294507,1780755047000,-508.70425749,0.00027123,2]
[424294516,1780755047000,-500.0,0.00027123,2]
[424294522,1780755047000,-179.83494619,0.00027153,3]
[424294515,1780755047000,-500.0,0.00027123,2]
[424294509,1780755047000,-150.0,0.00027123,2]
[424294510,1780755047000,-500.0,0.00027123,2]
[424294512,1780755047000,-500.0,0.00027123,2]
[424294508,1780755047000,-500.0,0.00027123,2]
[424294518,1780755047000,-500.0,0.00027123,2]
[424294594,1780755048000,-183.56437259,0.00027681,2]
[424294589,1780755048000,-699.0,0.00027671,2]
[424294590,1780755048000,-202.49290182,0.00027681,2]
[424294597,1780755048000,-175.69507317,0.00027703,2]
[424294578,1780755048000,-1399.73,0.000274,14]
[424294586,1780755048000,-164.67086417,0.00027662,2]
[424294579,1780755048000,-1908.54,0.000274,7]
[424294580,1780755048000,-4241.46,0.000274,7]
[424294582,1780755048000,-50926.9744056,0.00027532,2]
[424294581,1780755048000,-500.0,0.000275,7]
[424294587,1780755048000,-174.64724312,0.00027662,2]
[424294593,1780755048000,-184.09557416,0.00027681,2]
[424294599,1780755048000,-184.23545393,0.00027703,2]
[424294588,1780755048000,-155.73204333,0.00027662,2]
[424294591,1780755048000,-170.23456585,0.00027681,2]
[424294595,1780755048000,-183.67418236,0.00027681,2]
[424294596,1780755048000,-166.86452207,0.00027703,2]
[424294600,1780755048000,-153.85396636,0.00027703,2]
[424294605,1780755048000,-153.44899788,0.00027703,2]
[424294608,1780755048000,-150.03522787,0.00027703,2]
[424294607,1780755048000,-169.79965962,0.00027703,2]
[424294604,1780755048000,-166.0464063,0.00027703,2]
[424294598,1780755048000,-166.77066626,0.00027703,2]
[424294577,1780755048000,-1022.45,0.00027397,2]
[424294609,1780755048000,-182.7949947,0.00027703,2]
[424294592,1780755048000,-198.73331086,0.00027681,2]
[424294585,1780755048000,-180.61864652,0.00027662,2]
[424294565,1780755048000,-1351.0,0.00027397,2]
[424294575,1780755048000,-3084.94,0.00027397,2]
[424294602,1780755048000,-189.6598762,0.00027703,2]
[424294554,1780755048000,-500.0,0.00027397,2]
[424294553,1780755048000,-1351.0,0.00027397,2]
[424294557,1780755048000,-500.0,0.00027397,2]
[424294559,1780755048000,-500.0,0.00027397,2]
[424294558,1780755048000,-1351.0,0.00027397,2]
[424294556,1780755048000,-500.0,0.00027397,2]
[424294561,1780755048000,-1351.0,0.00027397,2]
[424294555,1780755048000,-500.0,0.00027397,2]
[424294560,1780755048000,-500.0,0.00027397,2]
[424294552,1780755048000,-500.0,0.00027397,2]
[424294562,1780755048000,-500.0,0.00027397,2]
[424294564,1780755048000,-315.69261864,0.00027397,2]
[424294563,1780755048000,-1351.0,0.00027397,2]
[424294573,1780755048000,-1000.0,0.00027397,20]
[424294571,1780755048000,-1005.02,0.00027397,2]
[424294566,1780755048000,-150.0,0.00027397,2]
[424294567,1780755048000,-1351.0,0.00027397,2]
[424294570,1780755048000,-429.38511821,0.00027397,2]
[424294568,1780755048000,-1351.0,0.00027397,2]
[424294569,1780755048000,-1500.0,0.00027397,2]
[424294572,1780755048000,-1470.24,0.00027397,2]
[424294574,1780755048000,-300.0,0.00027397,2]
[424294576,1780755048000,-528.8,0.00027397,2]
[424294584,1780755048000,-279.65988658,0.00027646,2]
[424294583,1780755048000,-3041.2,0.00027562,7]
[424294606,1780755048000,-209.0042667,0.00027703,2]
[424294663,1780755048000,-200.0,0.00027783,2]
[424294601,1780755048000,-188.56290069,0.00027703,2]
[424294641,1780755048000,-200.0,0.00027783,2]
[424294640,1780755048000,-200.0,0.00027783,2]
[424294643,1780755048000,-200.0,0.00027783,2]
[424294639,1780755048000,-200.0,0.00027783,2]
[424294642,1780755048000,-200.0,0.00027783,2]
[424294644,1780755048000,-200.0,0.00027783,2]
[424294646,1780755048000,-200.0,0.00027783,2]
[424294645,1780755048000,-200.0,0.00027783,2]
[424294647,1780755048000,-200.0,0.00027783,2]
[424294654,1780755048000,-200.0,0.00027783,2]
[424294651,1780755048000,-169.0,0.00027783,2]
[424294652,1780755048000,-200.0,0.00027783,2]
[424294650,1780755048000,-200.0,0.00027783,2]
[424294653,1780755048000,-200.0,0.00027783,2]
[424294648,1780755048000,-200.0,0.00027783,2]
[424294664,1780755048000,-200.0,0.00027783,2]
[424294662,1780755048000,-200.0,0.00027783,2]
[424294660,1780755048000,-200.0,0.00027783,2]
[424294656,1780755048000,-200.0,0.00027783,2]
[424294661,1780755048000,-200.0,0.00027783,2]
[424294655,1780755048000,-200.0,0.00027783,2]
[424294659,1780755048000,-200.0,0.00027783,2]
[424294658,1780755048000,-200.0,0.00027783,2]
[424294657,1780755048000,-200.0,0.00027783,2]
[424294603,1780755048000,-183.65734305,0.00027703,2]
[424294638,1780755048000,-200.0,0.00027783,2]
[424294637,1780755048000,-200.0,0.00027783,2]
[424294649,1780755048000,-200.0,0.00027783,2]
[424294633,1780755048000,-153.89372711,0.00027724,2]
[424294636,1780755048000,-200.0,0.00027783,2]
[424294610,1780755048000,-168.570945,0.00027703,2]
[424294615,1780755048000,-174.39297812,0.00027724,2]
[424294616,1780755048000,-167.59843801,0.00027724,2]
[424294620,1780755048000,-171.38767055,0.00027724,2]
[424294612,1780755048000,-150.60286028,0.00027724,2]
[424294614,1780755048000,-153.33707122,0.00027724,2]
[424294618,1780755048000,-387.30739344,0.00027724,2]
[424294613,1780755048000,-168.52281938,0.00027724,2]
[424294619,1780755048000,-393.23784791,0.00027724,2]
[424294617,1780755048000,-421.70928438,0.00027724,2]
[424294622,1780755048000,-166.5936792,0.00027724,2]
[424294629,1780755048000,-163.85940282,0.00027724,2]
[424294611,1780755048000,-157.85938846,0.00027703,2]
[424294627,1780755048000,-347.20121212,0.00027724,2]
[424294621,1780755048000,-153.91655154,0.00027724,2]
[424294624,1780755048000,-201.39268205,0.00027724,2]
[424294631,1780755048000,-198.99585866,0.00027724,2]
[424294630,1780755048000,-169.12886381,0.00027724,2]
[424294623,1780755048000,-236.47442689,0.00027724,2]
[424294626,1780755048000,-161.8511874,0.00027724,2]
[424294628,1780755048000,-150.63272832,0.00027724,2]
[424294632,1780755048000,-158.09150112,0.00027724,2]
[424294625,1780755048000,-180.80321223,0.00027724,2]
[424294634,1780755048000,-200.0,0.00027783,2]
[424294635,1780755048000,-200.0,0.00027783,2]
[424294703,1780755049000,-750.0,0.00027955,2]
[424294693,1780755049000,-500.0,0.00027783,2]
[424294702,1780755049000,-750.0,0.00027955,2]
[424294711,1780755049000,-262.0,0.00027955,2]
[424294698,1780755049000,-210.0,0.00027808,7]
[424294694,1780755049000,-500.0,0.00027783,2]
[424294697,1780755049000,-300.0,0.00027808,7]
[424294696,1780755049000,-543.0,0.00027783,2]
[424294692,1780755049000,-500.0,0.00027783,2]
[424294695,1780755049000,-500.0,0.00027783,2]
[424294712,1780755049000,-151.0,0.00027962,4]
[424294699,1780755049000,-606.0,0.00027848,2]
[424294704,1780755049000,-750.0,0.00027955,2]
[424294708,1780755049000,-750.0,0.00027955,2]
[424294706,1780755049000,-750.0,0.00027955,2]
[424294705,1780755049000,-750.0,0.00027955,2]
[424294710,1780755049000,-750.0,0.00027955,2]
[424294709,1780755049000,-750.0,0.00027955,2]
[424294720,1780755049000,-1908.54,0.000282,7]
[424294721,1780755049000,-699.0,0.00028205,3]
[424294722,1780755049000,-4204.8,0.00028267,2]
[424294713,1780755049000,-500.0,0.00027995,2]
[424294714,1780755049000,-4241.46,0.00028,7]
[424294723,1780755049000,-279.65988658,0.00028394,2]
[424294715,1780755049000,-993.9,0.00028,7]
[424294707,1780755049000,-750.0,0.00027955,2]
[424294701,1780755049000,-279.65988658,0.00027895,2]
[424294665,1780755049000,-200.0,0.00027783,2]
[424294700,1780755049000,-2494.0,0.00027895,5]
[424294667,1780755049000,-200.0,0.00027783,2]
[424294676,1780755049000,-200.0,0.00027783,2]
[424294675,1780755049000,-200.0,0.00027783,2]
[424294669,1780755049000,-200.0,0.00027783,2]
[424294666,1780755049000,-200.0,0.00027783,2]
[424294668,1780755049000,-200.0,0.00027783,2]
[424294670,1780755049000,-200.0,0.00027783,2]
[424294674,1780755049000,-200.0,0.00027783,2]
[424294677,1780755049000,-200.0,0.00027783,2]
[424294671,1780755049000,-200.0,0.00027783,2]
[424294673,1780755049000,-200.0,0.00027783,2]
[424294672,1780755049000,-200.0,0.00027783,2]
[424294678,1780755049000,-200.0,0.00027783,2]
[424294680,1780755049000,-200.0,0.00027783,2]
[424294683,1780755049000,-200.0,0.00027783,2]
[424294682,1780755049000,-200.0,0.00027783,2]